fUSD/lending_fUSD_20250309
["ID","MTS","AMOUNT","RATE_DAILY","PERIOD"]
[355749184,1741529441113,-151.0,9.244e-05,2]
[355749185,1741529441123,-151.0,9.244e-05,2]
[355749186,1741529441133,-151.0,9.244e-05,2]
[355749187,1741529441142,-151.0,9.244e-05,2]
[355749188,1741529441154,-151.0,9.244e-05,2]
[355749189,1741529441163,-254.431752,9.244e-05,2]
[355749190,1741529441172,-254.431752,9.244e-05,2]
[355749191,1741529441182,-151.0,9.244e-05,2]
[355749192,1741529441191,-151.0,9.244e-05,2]
[355749193,1741529441201,-151.0,9.244e-05,2]
[355749194,1741529441212,-151.0,9.244e-05,2]
[355749195,1741529441222,-151.0,9.244e-05,2]
[355749196,1741529441231,-151.0,9.244e-05,2]
[355749197,1741529441240,-151.0,9.244e-05,2]
[355749198,1741529441250,-151.0,9.244e-05,2]
[355749199,1741529441259,-151.0,9.244e-05,2]
[355749200,1741529441269,-151.0,9.244e-05,2]
[355749201,1741529441279,-151.0,9.244e-05,2]
[355749202,1741529441288,-271.591974,9.244e-05,2]
[355749203,1741529441298,-151.0,9.244e-05,2]
[355749204,1741529441307,-189.143787,9.244e-05,2]
[355749205,1741529441317,-189.143787,9.244e-05,2]
[355749206,1741529441326,-151.0,9.244e-05,2]
[355749207,1741529441335,-151.0,9.244e-05,2]
[355749208,1741529441345,-210.15445,9.244e-05,2]
[355749209,1741529441354,-210.15445,9.244e-05,2]
[355749210,1741529441365,-159.863054,9.244e-05,2]
[355749211,1741529441378,-207.841671,9.244e-05,2]
[355749212,1741529441387,-207.841671,9.244e-05,2]
[355749213,1741529441396,-151.0,9.244e-05,2]
[355749214,1741529441408,-151.0,9.244e-05,2]
[355749215,1741529441418,-151.0,9.244e-05,2]
[355749216,1741529441428,-151.0,9.244e-05,2]
[355749217,1741529441437,-151.0,9.244e-05,2]
[355749218,1741529441448,-151.0,9.244e-05,2]
[355749219,1741529441458,-151.0,9.244e-05,2]
[355749220,1741529441467,-151.0,9.244e-05,2]
[355749221,1741529441476,-151.0,9.244e-05,2]
[355749222,1741529441485,-221.13513,9.244e-05,2]
[355749223,1741529441494,-278.285232,9.244e-05,2]
[355749224,1741529441503,-151.0,9.244e-05,2]
[355749225,1741529441512,-151.0,9.244e-05,2]
[355749226,1741529441522,-151.0,9.244e-05,2]
[355749227,1741529441531,-4657.411521,9.244e-05,2]
[355749228,1741529441540,-4657.411521,9.244e-05,2]
[355749229,1741529441550,-240.668785,9.244e-05,2]
[355749230,1741529441560,-151.0,9.244e-05,2]
[355749231,1741529441570,-185.575981,9.244e-05,2]
[355749232,1741529441580,-185.575981,9.244e-05,2]
[355749233,1741529441590,-199.926331,9.244e-05,2]
[355749234,1741529441599,-199.926331,9.244e-05,2]
[355749235,1741529441610,-151.0,9.244e-05,2]
[355749236,1741529441619,-151.0,9.244e-05,2]
[355749237,1741529441629,-177.682357,9.244e-05,2]
[355749238,1741529441640,-160.666521,9.244e-05,2]
[355749239,1741529441649,-160.666521,9.244e-05,2]
[355749240,1741529441661,-151.0,9.244e-05,2]
[355749241,1741529441672,-199.488442,9.244e-05,2]
[355749242,1741529441682,-1143.047093,9.244e-05,2]
[355749243,1741529441692,-1143.047093,9.244e-05,2]
[355749244,1741529441702,-151.0,9.244e-05,2]
[355749245,1741529441713,-151.0,9.244e-05,2]
[355749246,1741529441722,-151.0,9.244e-05,2]
[355749247,1741529441733,-151.0,9.244e-05,2]
[355749248,1741529441743,-151.0,9.244e-05,2]
[355749249,1741529441752,-160.26649,9.244e-05,2]
[355749250,1741529441762,-160.26649,9.244e-05,2]
[355749251,1741529441772,-151.0,9.244e-05,2]
[355749252,1741529441782,-200.747536,9.244e-05,2]
[355749253,1741529441792,-151.0,9.244e-05,2]
[355749254,1741529441801,-200.747536,9.244e-05,2]
[355749255,1741529441811,-151.0,9.244e-05,2]
[355749256,1741529441820,-151.0,9.244e-05,2]
[355749257,1741529441830,-172271.35810231,9.244e-05,2]
[355749258,1741529441845,-29635.556836,9.244e-05,2]
[355749259,1741529441897,-2282.15396269,9.244e-05,2]
[355749260,1741529441913,-11427.98649373,9.244e-05,2]
[355749261,1741529441925,-1336.57719468,9.244e-05,2]
[355749262,1741529441971,-3544.06907793,9.244e-05,2]
[355749263,1741529441990,-375.712,9.244e-05,2]
[355749264,1741529442002,-50912.06389623,9.244e-05,2]
[355749265,1741529442014,-22768.20000116,9.244e-05,2]
[355749266,1741529442025,-9178.32,9.244e-05,2]
[355749267,1741529442037,-268506.4,9.244e-05,2]
[355749268,1741529442048,-608.23691617,9.244e-05,2]
[355749269,1741529442060,-89296.89923061,9.244e-05,2]
[355749270,1741529442071,-8786.88967395,9.244e-05,2]
[355749271,1741529442083,-420.7762644,9.244e-05,2]
[355749272,1741529442097,-251.24027811,9.244e-05,2]
[355749273,1741529442109,-8361.684,9.244e-05,2]
[355749274,1741529442151,-1490.36912508,9.244e-05,2]
[355749275,1741529442164,-1455.714,9.244e-05,2]
[355749299,1741529442818,-1113.0,9.094e-05,2]
[355749300,1741529442828,-2002.65172122,9.2e-05,2]
[355749301,1741529442840,-14.34827878,9.2e-05,2]
[355749302,1741529442851,-882.57319302,9.244e-05,2]
[355749303,1741529442864,-2319.30511994,9.244e-05,2]
[355749304,1741529442928,-854.36582858,9.244e-05,2]
[355749305,1741529442964,-359115.55880541,9.244e-05,2]
[355749306,1741529442974,-150.0,9.255e-05,2]
[355749307,1741529442984,-500.0,9.255e-05,2]
[355749308,1741529442994,-500.0,9.255e-05,2]
[355749309,1741529443004,-150.0,9.255e-05,2]
[355749310,1741529443019,-152.1414762,9.255e-05,2]
[355749311,1741529443029,-542.90272084,9.271e-05,2]
[355749312,1741529443038,-150.0,9.282e-05,2]
[355749313,1741529443048,-961.72646981,9.282e-05,2]
[355749314,1741529443057,-500.0,9.282e-05,2]
[355749315,1741529443067,-150.0,9.282e-05,2]
[355749316,1741529443076,-1000.0,9.307e-05,2]
[355749317,1741529443086,-200.0,9.31e-05,2]
[355749318,1741529443096,-500.0,9.31e-05,2]
[355749319,1741529443106,-205.65219262,9.31e-05,2]
[355749320,1741529443116,-500.0,9.337e-05,2]
[355749321,1741529443126,-4356.71418666,9.34e-05,3]
[355749322,1741529443136,-32399.88111483,9.34e-05,2]
[355749323,1741529443146,-78380.87684715,9.342e-05,2]
[355749324,1741529443157,-56233.42,9.342e-05,2]
[355749326,1741529443166,-151.0,9.342e-05,2]
[355749327,1741529443176,-169.080093,9.342e-05,2]
[355749328,1741529443187,-169.080093,9.342e-05,2]
[355749329,1741529443196,-151.0,9.342e-05,2]
[355749330,1741529443206,-151.0,9.342e-05,2]
[355749331,1741529443215,-151.0,9.342e-05,2]
[355749332,1741529443225,-151.0,9.342e-05,2]
[355749333,1741529443235,-151.0,9.342e-05,2]
[355749334,1741529443244,-151.0,9.342e-05,2]
[355749335,1741529443254,-167.197137,9.342e-05,2]
[355749336,1741529443263,-167.197137,9.342e-05,2]
[355749337,1741529443272,-336.759154,9.342e-05,2]
[355749338,1741529443282,-336.759154,9.342e-05,2]
[355749339,1741529443291,-151.0,9.342e-05,2]
[355749340,1741529443300,-151.0,9.342e-05,2]
[355749341,1741529443310,-182.17424,9.342e-05,2]
[355749342,1741529443319,-151.0,9.342e-05,2]
[355749343,1741529443328,-151.0,9.342e-05,2]
[355749344,1741529443337,-151.0,9.342e-05,2]
[355749345,1741529443346,-254.431752,9.342e-05,2]
[355749348,1741529443356,-254.431752,9.342e-05,2]
[355749349,1741529443367,-151.0,9.342e-05,2]
[355749350,1741529443379,-151.0,9.342e-05,2]
[355749351,1741529443388,-151.0,9.342e-05,2]
[355749353,1741529443397,-151.0,9.342e-05,2]
[355749354,1741529443409,-151.0,9.342e-05,2]
[355749355,1741529443419,-151.0,9.342e-05,2]
[355749356,1741529443429,-151.0,9.342e-05,2]
[355749357,1741529443438,-151.0,9.342e-05,2]
[355749358,1741529443448,-151.0,9.342e-05,2]
[355749359,1741529443458,-160.613781,9.342e-05,2]
[355749360,1741529443469,-151.0,9.342e-05,2]
[355749361,1741529443479,-202.636689,9.342e-05,2]
[355749362,1741529443488,-189.143787,9.342e-05,2]
[355749363,1741529443498,-189.143787,9.342e-05,2]
[355749364,1741529443507,-151.0,9.342e-05,2]
[355749365,1741529443517,-151.0,9.342e-05,2]
[355749366,1741529443717,-210.15445,9.342e-05,2]
[355749367,1741529443727,-210.15445,9.342e-05,2]
[355749368,1741529443737,-207.841671,9.342e-05,2]
[355749369,1741529443747,-207.841671,9.342e-05,2]
[355749370,1741529443756,-151.0,9.342e-05,2]
[355749371,1741529443765,-151.0,9.342e-05,2]
[355749372,1741529443775,-151.0,9.342e-05,2]
[355749373,1741529443784,-151.0,9.342e-05,2]
[355749374,1741529443793,-151.0,9.342e-05,2]
[355749375,1741529443802,-151.0,9.342e-05,2]
[355749376,1741529443812,-151.0,9.342e-05,2]
[355749377,1741529443822,-151.0,9.342e-05,2]
[355749378,1741529443831,-151.0,9.342e-05,2]
[355749379,1741529443840,-151.0,9.342e-05,2]
[355749380,1741529443849,-151.0,9.342e-05,2]
[355749381,1741529443858,-151.0,9.342e-05,2]
[355749382,1741529443867,-4657.411521,9.342e-05,2]
[355749383,1741529443877,-4657.411521,9.342e-05,2]
[355749384,1741529443886,-151.0,9.342e-05,2]
[355749385,1741529443896,-185.575981,9.342e-05,2]
[355749386,1741529443905,-185.575981,9.342e-05,2]
[355749387,1741529443916,-199.926331,9.342e-05,2]
[355749388,1741529443927,-199.926331,9.342e-05,2]
[355749389,1741529443937,-151.0,9.342e-05,2]
[355749390,1741529443947,-151.0,9.342e-05,2]
[355749391,1741529443958,-160.666521,9.342e-05,2]
[355749392,1741529443967,-160.666521,9.342e-05,2]
[355749393,1741529443977,-151.0,9.342e-05,2]
[355749394,1741529443988,-1143.047093,9.342e-05,2]
[355749395,1741529443997,-1143.047093,9.342e-05,2]
[355749396,1741529444008,-151.0,9.342e-05,2]
[355749397,1741529444019,-165.928807,9.342e-05,2]
[355749398,1741529444029,-151.0,9.342e-05,2]
[355749399,1741529444040,-151.0,9.342e-05,2]
[355749400,1741529444051,-151.0,9.342e-05,2]
[355749401,1741529444061,-160.26649,9.342e-05,2]
[355749402,1741529444071,-160.26649,9.342e-05,2]
[355749403,1741529444082,-214.304434,9.342e-05,2]
[355749404,1741529444092,-200.747536,9.342e-05,2]
[355749405,1741529444103,-151.0,9.342e-05,2]
[355749406,1741529444113,-200.747536,9.342e-05,2]
[355749407,1741529444123,-151.0,9.342e-05,2]
[355749408,1741529444133,-151.0,9.342e-05,2]
[355749409,1741529444143,-178190.68811969,9.343e-05,2]
[355749418,1741529445774,-2916.61765131,9.343e-05,2]
[355749419,1741529445803,-311.308985,9.343e-05,2]
[355749420,1741529445816,-841.0,9.343e-05,2]
[355749421,1741529445827,-2605.68934171,9.343e-05,2]
[355749422,1741529445839,-1247.44655388,9.343e-05,2]
[355749423,1741529445851,-199973.00438418,9.343e-05,2]
[355749424,1741529445870,-17976.07235409,9.343e-05,2]
[355749425,1741529446060,-11190.98606054,9.343e-05,2]
[355749426,1741529446073,-530.07002002,9.343e-05,2]
[355749427,1741529446085,-1678.677,9.343e-05,2]
[355749428,1741529446097,-276.32738322,9.343e-05,2]
[355749429,1741529446135,-390160.14151027,9.343e-05,2]
[355749430,1741529446148,-63220.20000003,9.343e-05,2]
[355749431,1741529446171,-1215.7,9.343e-05,2]
[355749432,1741529446184,-1238.11648643,9.343e-05,2]
[355749433,1741529446196,-1057.19081553,9.343e-05,2]
[355749436,1741529446208,-843.67529856,9.343e-05,2]
[355749629,1741529686257,1000.0,0.00027,120]
[355749630,1741529878774,362014.50277491,0.00028,120]
[355749631,1741529909673,1978.09,0.00028,120]
[355749632,1741529957933,990.69,0.00028,120]
[355749633,1741529964447,990.69,0.00028,120]
[355749634,1741530071185,990.69,0.00028,120]
[355749635,1741530077480,990.69,0.00028,120]
[355749636,1741530084756,990.69,0.00028,120]
[355749637,1741530145346,1979.1,0.00028,120]
[355749638,1741530155361,990.69,0.00028,120]
[355749639,1741530160607,990.69,0.00028,120]
[355749640,1741530233921,-180.87,8.219e-05,2]
[355749641,1741530245415,-300.0,8.428e-05,2]
[355749653,1741530531834,-300.0,8.187e-05,2]
[355749654,1741530531887,-4828.84054008,8.188e-05,2]
[355749655,1741530531977,-5128.84054008,8.188e-05,2]
[355749656,1741530532088,-5128.84054008,8.188e-05,2]
[355749657,1741530532176,-5128.84054008,8.188e-05,2]
[355749658,1741530532267,-5128.84054008,8.188e-05,2]
[355749659,1741530532362,-421.84400562,8.188e-05,2]
[355749801,1741530632077,-4692.08064616,8.188e-05,2]
[355749802,1741530632087,-1136.27,8.357e-05,2]
[355749803,1741530632097,-11607.51616251,8.429e-05,2]
[355749804,1741530632109,-312.49619502,8.429e-05,2]
[355749805,1741530632174,-5056.79764247,8.429e-05,2]
[355749806,1741530632184,-1000.0,8.495e-05,2]
[355749807,1741530632193,-373.02860681,8.991e-05,2]
[355749808,1741530632203,-2619.79514067,9e-05,2]
[355749809,1741530632213,-150.0,9.164e-05,2]
[355749810,1741530632224,-150.0,9.165e-05,2]
[355749811,1741530632234,-641.0,9.165e-05,2]
[355749812,1741530632244,-1459.0,9.165e-05,2]
[355749813,1741530632254,-571.0,9.165e-05,2]
[355749814,1741530632263,-786.0,9.165e-05,2]
[355749815,1741530632272,-907.0,9.165e-05,2]
[355749816,1741530632282,-1270.0,9.165e-05,2]
[355749817,1741530632292,-541.0,9.165e-05,2]
[355749818,1741530632301,-1428.0,9.165e-05,2]
[355749819,1741530632311,-4084.483,9.165e-05,2]
[355749820,1741530632321,-1113.0,9.165e-05,2]
[355749821,1741530632330,-3932.0,9.165e-05,2]
[355749822,1741530632339,-2032.0,9.165e-05,2]
[355749823,1741530632348,-643.0,9.165e-05,2]
[355749824,1741530632358,-502.59010797,9.173e-05,2]
[355749825,1741530632367,-500.0,9.173e-05,2]
[355749827,1741530632377,-885.60698019,9.187e-05,2]
[355749829,1741530632386,-867.79833198,9.197e-05,2]
[355749830,1741530632396,-2478.586,9.197e-05,2]
[355749831,1741530632406,-169.569,9.197e-05,2]
[355749832,1741530632415,-299.99,9.197e-05,2]
[355749833,1741530632424,-150.99,9.197e-05,2]
[355749834,1741530632434,-999.99,9.197e-05,2]
[355749835,1741530632444,-1625.56,9.197e-05,2]
[355749836,1741530632453,-2896.12341756,9.197e-05,2]
[355749837,1741530632465,-134.47658244,9.197e-05,2]
[355749838,1741530632475,-500.0,9.198e-05,2]
[355749839,1741530632485,-500.0,9.198e-05,2]
[355749840,1741530632494,-206.77820204,9.198e-05,2]
[355749841,1741530632506,-250.7505,9.198e-05,2]
[355749842,1741530632518,-42.47129796,9.198e-05,2]
[355749843,1741530632527,-992.46,9.198e-05,2]
[355749844,1741530632537,-500.0,9.198e-05,2]
[355749845,1741530632547,-555.22,9.198e-05,2]
[355749846,1741530632558,-838.52,9.198e-05,2]
[355749847,1741530632568,-836.54,9.198e-05,2]
[355749848,1741530632577,-558.78,9.198e-05,2]
[355749849,1741530632587,-1373.98,9.198e-05,2]
[355749850,1741530632599,-1383.68,9.198e-05,2]
[355749851,1741530632609,-500.0,9.198e-05,2]
[355749852,1741530632619,-500.0,9.198e-05,2]
[355749853,1741530632629,-2238.12,9.198e-05,2]
[355749854,1741530632638,-1419.44,9.198e-05,2]
[355749855,1741530632648,-356.78,9.198e-05,2]
[355749856,1741530632658,-892.69,9.198e-05,2]
[355749857,1741530632667,-500.0,9.198e-05,2]
[355749858,1741530632677,-830.75,9.198e-05,2]
[355749859,1741530632687,-986.69,9.198e-05,2]
[355749860,1741530632696,-583.66,9.198e-05,2]
[355749861,1741530632707,-831.91,9.198e-05,2]
[355749862,1741530632717,-500.0,9.198e-05,2]
[355749863,1741530632728,-432.66598365,9.198e-05,2]
[355749864,1741530632738,-500.0,9.198e-05,2]
[355749865,1741530632751,-18064.91271839,9.199e-05,2]
[355749872,1741530637941,-7514.296572,8.178e-05,2]
[355749873,1741530637950,-1278.0,9.165e-05,2]
[355749874,1741530637960,-500.0,9.198e-05,2]
[355749875,1741530637970,-61676.99282583,9.199e-05,2]
[355749876,1741530638034,-16704.38076902,9.199e-05,2]
[355749877,1741530638131,-418.425,9.199e-05,2]
[355749878,1741530638230,-841.71,9.199e-05,2]
[355749879,1741530638243,-309.2423,9.199e-05,2]
[355749880,1741530638255,-418.93,9.199e-05,2]
[355749881,1741530638267,-12525.0,9.199e-05,2]
[355749897,1741530640362,-41895.73442447,9.199e-05,2]
[355749898,1741530640376,-1225.28875366,9.199e-05,2]
[355749899,1741530640387,-299586.51236297,9.199e-05,2]
[355749900,1741530640439,-150.0,9.165e-05,2]
[355749901,1741530640449,-7173.75767579,9.199e-05,2]
[355749902,1741530640460,-10188.76987644,9.199e-05,2]
[355749903,1741530640478,-9855.18320672,9.199e-05,2]
[355749904,1741530640490,-153831.57583067,9.199e-05,2]
[355749905,1741530640500,-95707.84712027,9.2e-05,2]
[355749906,1741530640510,-727.3969,9.237e-05,2]
[355749907,1741530640520,-366.741,9.243e-05,2]
[355749908,1741530640529,-418.7871,9.243e-05,2]
[355749909,1741530640539,-542.90272084,9.322e-05,2]
[355749910,1741530640549,-150.80827654,9.337e-05,2]
[355749911,1741530640558,-5859.4608701,9.337e-05,2]
[355749912,1741530640567,-700.7951527,9.337e-05,2]
[355749913,1741530640577,-3459.5282857,9.337e-05,2]
[355749914,1741530640587,-1951.2183304,9.337e-05,2]
[355749915,1741530640596,-369.3466336,9.337e-05,2]
[355749917,1741530640605,-150.3,9.34e-05,2]
[355749919,1741530640615,-3885.10025319,9.341e-05,2]
[355749921,1741530640625,-1031.52,9.341e-05,2]
[355749923,1741530640634,-1755.99,9.341e-05,2]
[355749925,1741530640643,-892.81,9.341e-05,2]
[355749927,1741530640653,-1495.5,9.341e-05,2]
[355749929,1741530640662,-500.0,9.341e-05,2]
[355749931,1741530640675,-1700.24,9.341e-05,2]
[355749933,1741530640685,-500.0,9.341e-05,2]
[355749935,1741530640695,-938.16,9.341e-05,2]
[355749937,1741530640704,-500.0,9.341e-05,2]
[355749939,1741530640713,-500.0,9.341e-05,2]
[355749941,1741530640723,-255.87,9.342e-05,2]
[355749943,1741530640732,-500.0,9.342e-05,2]
[355749945,1741530640742,-223.356434,9.342e-05,2]
[355749947,1741530640757,-402.853993,9.342e-05,2]
[355749949,1741530640766,-500.0,9.342e-05,2]
[355749951,1741530640774,-398.25610082,9.342e-05,2]
[355749953,1741530640783,-500.0,9.342e-05,2]
[355749955,1741530640793,-500.0,9.342e-05,2]
[355749957,1741530640803,-500.0,9.342e-05,2]
[355749959,1741530640811,-500.0,9.342e-05,2]
[355749961,1741530640821,-500.0,9.342e-05,2]
[355749963,1741530640831,-500.0,9.342e-05,2]
[355749965,1741530640840,-500.0,9.342e-05,2]
[355749967,1741530640849,-267.43756827,9.342e-05,2]
[355749969,1741530640858,-500.0,9.342e-05,2]
[355749971,1741530640867,-500.0,9.342e-05,2]
[355749973,1741530640876,-500.0,9.342e-05,2]
[355749975,1741530640885,-490.13084099,9.342e-05,2]
[355749977,1741530640894,-500.0,9.342e-05,2]
[355749979,1741530640903,-500.0,9.342e-05,2]
[355749981,1741530640912,-500.0,9.342e-05,2]
[355749983,1741530640922,-500.0,9.342e-05,2]
[355749985,1741530640931,-1613.38,9.342e-05,2]
[355749987,1741530640940,-500.0,9.342e-05,2]
[355749989,1741530640950,-527.64,9.342e-05,2]
[355749991,1741530640959,-500.0,9.342e-05,2]
[355749993,1741530640969,-677.64,9.342e-05,2]
[355749995,1741530640978,-500.0,9.342e-05,2]
[355749997,1741530640988,-500.0,9.342e-05,2]
[355749999,1741530640997,-552.43,9.342e-05,2]
[355750001,1741530641007,-500.0,9.342e-05,2]
[355750002,1741530641016,-577.13,9.342e-05,2]
[355750004,1741530641025,-500.0,9.342e-05,2]
[355750006,1741530641035,-500.0,9.342e-05,2]
[355750008,1741530641044,-500.0,9.342e-05,2]
[355750010,1741530641054,-553.48,9.342e-05,2]
[355750012,1741530641063,-500.0,9.342e-05,2]
[355750014,1741530641072,-500.0,9.342e-05,2]
[355750016,1741530641081,-500.0,9.342e-05,2]
[355750018,1741530641090,-500.0,9.342e-05,2]
[355750020,1741530641100,-533.63,9.342e-05,2]
[355750022,1741530641110,-500.0,9.342e-05,2]
[355750023,1741530641120,-500.0,9.342e-05,2]
[355750025,1741530641129,-500.0,9.342e-05,2]
[355750027,1741530641138,-820.21,9.342e-05,2]
[355750029,1741530641151,-500.0,9.342e-05,2]
[355750031,1741530641161,-3476.16,9.342e-05,2]
[355750033,1741530641170,-905.17,9.342e-05,2]
[355750035,1741530641179,-500.0,9.342e-05,2]
[355750037,1741530641188,-1083.68,9.342e-05,2]
[355750039,1741530641197,-469.76041613,9.342e-05,2]
[355750041,1741530641208,-614.81,9.342e-05,2]
[355750043,1741530641217,-500.0,9.342e-05,2]
[355750045,1741530641226,-1098.65,9.342e-05,2]
[355750047,1741530641236,-1509.17,9.342e-05,2]
[355750049,1741530641245,-1413.1,9.342e-05,2]
[355750050,1741530641255,-500.0,9.342e-05,2]
[355750051,1741530641264,-500.0,9.342e-05,2]
[355750052,1741530641274,-2434.0,9.342e-05,2]
[355750053,1741530641283,-2064.42,9.342e-05,2]
[355750054,1741530641293,-795.56,9.342e-05,2]
[355750055,1741530641303,-500.0,9.342e-05,2]
[355750056,1741530641314,-500.0,9.342e-05,2]
[355750057,1741530641324,-507.54,9.342e-05,2]
[355750058,1741530641334,-1303.36,9.342e-05,2]
[355750059,1741530641344,-1473.92,9.342e-05,2]
[355750060,1741530641353,-678.49,9.342e-05,2]
[355750061,1741530641362,-640.0,9.342e-05,2]
[355750062,1741530641372,-500.0,9.342e-05,2]
[355750063,1741530641381,-624.37,9.342e-05,2]
[355750064,1741530641390,-598.76,9.342e-05,2]
[355750065,1741530641399,-500.0,9.342e-05,2]
[355750066,1741530641408,-787.42,9.342e-05,2]
[355750067,1741530641418,-500.0,9.342e-05,2]
[355750068,1741530641427,-1049.66,9.342e-05,2]
[355750069,1741530641436,-1207.11,9.342e-05,2]
[355750070,1741530641446,-1379.76,9.342e-05,2]
[355750071,1741530641455,-930.42,9.342e-05,2]
[355750072,1741530641465,-500.0,9.342e-05,2]
[355750073,1741530641474,-500.0,9.342e-05,2]
[355750074,1741530641484,-500.0,9.342e-05,2]
[355750075,1741530641493,-1248.54,9.342e-05,2]
[355750076,1741530641503,-800.7,9.342e-05,2]
[355750077,1741530641513,-2023.72,9.342e-05,2]
[355750078,1741530641522,-1632.27,9.342e-05,2]
[355750079,1741530641532,-996.87,9.342e-05,2]
[355750080,1741530641541,-1051.77,9.342e-05,2]
[355750081,1741530641550,-650.99,9.342e-05,2]
[355750082,1741530641560,-10107.99,9.342e-05,2]
[355750083,1741530641569,-992.39,9.342e-05,2]
[355750084,1741530641579,-1774.18,9.342e-05,2]
[355750085,1741530641588,-843.33,9.342e-05,2]
[355750086,1741530641597,-500.0,9.342e-05,2]
[355750087,1741530641606,-852.74,9.342e-05,2]
[355750088,1741530641616,-2795.77,9.342e-05,2]
[355750089,1741530641626,-473.25,9.342e-05,2]
[355750090,1741530641636,-500.0,9.342e-05,2]
[355750091,1741530641645,-566.89,9.342e-05,2]
[355750092,1741530641654,-916.28,9.342e-05,2]
[355750093,1741530641663,-577.03,9.342e-05,2]
[355750094,1741530641673,-500.0,9.342e-05,2]
[355750095,1741530641682,-597.87,9.342e-05,2]
[355750096,1741530641691,-1412.85,9.342e-05,2]
[355750097,1741530641701,-4658.6,9.342e-05,2]
[355750098,1741530641711,-500.0,9.342e-05,2]
[355750099,1741530641720,-515.1,9.342e-05,2]
[355750100,1741530641729,-637.49,9.342e-05,2]
[355750101,1741530641740,-920.61,9.342e-05,2]
[355750102,1741530641752,-844.79,9.342e-05,2]
[355750103,1741530641764,-500.0,9.342e-05,2]
[355750104,1741530641774,-1384.29,9.342e-05,2]
[355750105,1741530641784,-500.0,9.342e-05,2]
[355750106,1741530641794,-632.45,9.342e-05,2]
[355750107,1741530641806,-543.51,9.342e-05,2]
[355750108,1741530641816,-1362.22,9.342e-05,2]
[355750109,1741530641825,-6866.05,9.342e-05,2]
[355750110,1741530641838,-540.88,9.342e-05,2]
[355750111,1741530641848,-500.0,9.342e-05,2]
[355750112,1741530641858,-500.0,9.342e-05,2]
[355750113,1741530641867,-789.13,9.342e-05,2]
[355750114,1741530641877,-500.0,9.342e-05,2]
[355750115,1741530641886,-500.0,9.342e-05,2]
[355750116,1741530641895,-2772.03,9.342e-05,2]
[355750117,1741530641905,-2053.8,9.342e-05,2]
[355750118,1741530641915,-2050.0,9.343e-05,2]
[355750119,1741530641924,-35854.53001609,9.343e-05,2]
[355750153,1741530644587,-1672.28569968,9.343e-05,2]
[355750154,1741530644603,-948.09401731,9.343e-05,2]
[355750155,1741530644617,-282830.39705976,9.343e-05,2]
[355750156,1741530644634,-5826.95480421,9.343e-05,2]
[355750157,1741530644651,-1002.68304578,9.343e-05,2]
[355750158,1741530644672,-12974.94059388,9.343e-05,2]
[355750166,1741530645984,-700.0,9.098e-05,2]
[355750167,1741530646000,-93.31581423,9.198e-05,2]
[355750168,1741530646014,-692.72418577,9.198e-05,2]
[355750169,1741530646025,-1776.35632423,9.343e-05,2]
[355750170,1741530646094,-1263.53526026,9.343e-05,2]
[355750171,1741530646108,-2115.66316896,9.343e-05,2]
[355750172,1741530646275,-1012.0,9.165e-05,2]
[355750173,1741530646286,-772.70016375,9.343e-05,2]
[355750222,1741531012783,-300.0,8.219e-05,2]
[355750531,1741531806109,-684.7173398,8.219e-05,2]
[355750532,1741531806167,-475.83829261,8.219e-05,2]
[355750536,1741531832216,-499.20170739,8.219e-05,2]
[355750537,1741531832226,-306.4,8.536e-05,2]
[355750538,1741531832236,-194.39829261,8.669e-05,2]
[355750539,1741531832281,-266.0,8.669e-05,2]
[355750540,1741531832293,-539.60170739,8.669e-05,2]
[355750541,1741531832303,-179.38,8.813e-05,2]
[355750542,1741531832312,-728.5655,9.099e-05,2]
[355750543,1741531832323,-476.2362,9.099e-05,2]
[355750544,1741531832333,-150.0,9.151e-05,2]
[355750545,1741531832343,-150.0,9.179e-05,2]
[355750546,1741531832352,-300.0,9.179e-05,2]
[355750547,1741531832363,-150.41659261,9.18e-05,2]
[355750548,1741531832469,-18.07340739,9.18e-05,2]
[355750549,1741531832479,-2278.266,9.18e-05,2]
[355750550,1741531832489,-1278.0,9.18e-05,2]
[355750551,1741531832498,-2032.0,9.18e-05,2]
[355750552,1741531832509,-571.0,9.18e-05,2]